bitfinex-derivatives/quotes_ETHF0:USTF0_20250405
["timestamp","ask_amount","ask_price","bid_price","bid_amount"]
[1743819851778,7.14549,1818.7,1818.6,1.47291]
[1743819852272,7.14547,1818.7,1818.6,2.90681]
[1743819852473,3.504,1818.7,1818.6,2.90681]
[1743819853579,6.72004516,1818.8,1818.7,0.77007]
[1743819853882,6.72004516,1818.8,1818.7,2.86537]
[1743819854782,7.49007516,1818.8,1818.7,2.0953]
[1743819858681,0.00824516,1818.8,1818.7,2.86537]
[1743819859680,4.9961,1819.2,1818.7,4.5953]
[1743819859886,4.9961,1819.2,1819.1,0.7699]
[1743819860086,5.76596,1819.2,1819.0,0.76991]
[1743819860286,5.76596,1819.2,1819.1,2.2685]
[1743819860486,5.76596,1819.2,1819.1,3.0384]
[1743819860786,5.76596,1819.2,1819.1,2.2685]
[1743819861683,0.76994,1819.0,1818.8,3.97781]
[1743819861883,0.7525,1818.9,1818.8,5.48621]
[1743819862084,0.7525,1818.9,1818.8,3.97781]
[1743819863387,1.52248,1818.9,1818.8,3.2078]
[1743819863581,1.52248,1818.9,1818.8,3.97783]
[1743819863582,0.7525,1818.9,1818.8,3.97783]
[1743819864089,0.7671,1819.0,1818.9,0.76998]
[1743819864289,0.7671,1819.0,1818.9,1.51378]
[1743819864785,1.47533,1819.1,1819.0,0.76994]
[1743819864986,4.9236,1819.2,1819.1,0.7699]
[1743819867090,5.69346,1819.2,1819.1,0.7699]
[1743819867693,4.9236,1819.2,1819.1,0.7699]
[1743819868496,3.504,1819.2,1819.1,0.7699]
[1743819871095,3.98589516,1819.3,1819.1,0.7699]
[1743819871394,0.76986,1819.2,1819.1,0.7699]
[1743819871601,0.76986,1819.2,1819.0,1.53211]
[1743819871790,0.7699,1819.1,1818.9,1.51376]
[1743819872091,1.5115,1819.0,1818.9,1.51376]
[1743819872292,2.2491,1819.0,1818.9,1.51376]
[1743819872492,0.76988,1819.2,1818.9,0.7438]
[1743819872692,3.01898,1819.2,1818.9,0.7438]
[1743819873193,3.01898,1819.2,1819.0,0.76994]
[1743819874195,3.01898,1819.2,1819.1,2.165]
[1743819874595,0.76993,1819.1,1818.9,0.7438]
[1743819874793,2.23213,1819.1,1818.9,3.00555]
[1743819874995,2.23213,1819.1,1819.0,0.76994]
[1743819875595,1.4622,1819.1,1819.0,0.76994]
[1743819875893,1.4622,1819.1,1819.0,2.26174]
[1743819876689,1.50747,1819.2,1819.1,0.7699]
[1743819876894,4.70677516,1819.3,1819.2,0.76986]
[1743819877308,4.70677516,1819.3,1819.2,1.53356]
[1743819877705,3.98587516,1819.3,1819.2,1.53356]
[1743819877900,3.98587516,1819.3,1819.2,2.27686]
[1743819878302,3.21604516,1819.3,1819.2,2.27686]
[1743819882204,3.21604516,1819.3,1819.1,1.4918]
[1743819882205,3.98585516,1819.3,1819.1,2.26167]
[1743819882405,2.28836,1819.2,1819.0,2.25522]
[1743819882604,1.5185,1819.1,1819.0,3.72832]
[1743819884909,1.5185,1819.1,1819.0,2.24302]
[1743819885117,3.0239,1819.1,1819.0,2.24302]
[1743819885414,3.0239,1819.1,1819.0,0.76992]
[1743819887120,0.76994,1819.0,1818.7,3.2078]
[1743819887309,2.97854,1819.0,1818.8,0.77001]
[1743819887504,0.76998,1818.9,1818.7,3.97784]
[1743819887815,1.5151,1818.8,1818.7,5.47684]
[1743819888009,2.2506,1818.8,1818.7,5.47684]
[1743819890015,2.2506,1818.8,1818.7,3.97784]
[1743819890415,3.02063,1818.8,1818.7,3.97784]
[1743819890612,2.2506,1818.8,1818.7,3.97784]
[1743819891518,2.2506,1818.8,1818.7,0.77004]
[1743819894620,3.02063,1818.8,1818.7,0.77004]
[1743819896522,2.2506,1818.8,1818.7,0.77004]
[1743819896720,3.02063,1818.8,1818.7,0.77004]
[1743819896919,2.2506,1818.8,1818.5,0.00824516]
[1743819897222,0.77011,1818.6,1818.5,0.00824516]
[1743819897422,4.27211,1818.6,1818.5,0.00824516]
[1743819897621,8.30321,1818.6,1818.5,0.00824516]
[1743819897915,8.30321,1818.6,1818.1,0.7703]
[1743819897916,0.77028,1818.3,1818.1,0.7703]
[1743819898224,0.7514,1818.2,1818.1,0.7703]
[1743819898422,0.7514,1818.2,1818.1,2.2424]
[1743819898921,2.2708,1818.2,1818.1,2.2424]
[1743819900623,1.5194,1818.2,1818.1,2.2424]
[1743819906233,2.2334,1818.2,1818.1,2.2424]
[1743819908330,0.714,1818.2,1818.1,2.2424]
[1743819909034,5.78998516,1818.3,1818.2,0.77028]
[1743819909331,5.01974516,1818.3,1818.2,2.23188]
[1743819913131,3.51224516,1818.3,1818.2,2.23188]
[1743819913435,3.2078,1818.7,1818.2,2.23188]
[1743819913436,3.504,1818.6,1818.5,0.77015]
[1743819914742,4.27411,1818.6,1818.4,2.19917]
[1743819914927,0.77015,1818.5,1818.4,1.429]
[1743819915133,2.25905,1818.5,1818.4,1.429]
[1743819915438,3.0011,1818.5,1818.3,0.77022]
[1743819915731,1.4889,1818.4,1818.3,2.25172]
[1743819916940,2.2591,1818.4,1818.3,1.4815]
[1743819917133,1.4889,1818.4,1818.3,2.25174]
[1743819917635,1.51938,1818.5,1818.4,0.7702]
[1743819917835,0.7492,1818.5,1818.4,2.9838]
[1743819918144,1.51935,1818.5,1818.4,2.9838]
[1743819918446,1.51935,1818.5,1818.4,2.2136]
[1743819918740,0.7492,1818.5,1818.4,2.9838]
[1743819919243,1.51935,1818.5,1818.4,2.9838]
[1743819919444,3.00125,1818.5,1818.4,2.9838]
[1743819920542,2.2311,1818.5,1818.4,2.9838]
[1743819924045,0.7492,1818.5,1818.4,2.9838]
[1743819924743,3.504,1818.6,1818.5,0.77015]
[1743819925043,3.504,1818.6,1818.5,2.91905]
[1743819926439,3.98613516,1818.7,1818.5,2.91905]
[1743819926647,3.21604516,1818.7,1818.6,2.24411]
[1743819927245,3.98611516,1818.7,1818.6,1.474]
[1743819927745,3.98611516,1818.7,1818.6,2.24411]
[1743819928444,3.98611516,1818.7,1818.6,1.474]
[1743819930249,3.98611516,1818.7,1818.6,2.24411]
[1743819930440,3.98611516,1818.7,1818.6,1.474]
[1743819931547,0.77831516,1818.7,1818.6,1.474]
[1743819931846,3.98611516,1818.7,1818.6,1.474]
[1743819932042,5.46561516,1818.7,1818.6,1.474]
[1743819932449,4.69554516,1818.7,1818.6,2.24411]
[1743819932746,0.00824516,1818.7,1818.6,2.24411]
[1743819934648,3.2078,1819.2,1818.7,1.92517]
[1743819934950,3.503,1819.1,1819.0,0.76993]
[1743819936350,4.2729,1819.1,1818.9,2.18608516]
[1743819936542,4.9012,1819.1,1818.9,2.18608516]
[1743819936743,1.3982,1819.0,1818.9,2.18608516]
[1743819936943,2.0919,1819.0,1818.9,2.18608516]
[1743819937351,2.0919,1819.0,1818.9,0.00824516]
[1743819937550,2.86184,1819.0,1818.9,0.00824516]
[1743819937950,2.86184,1819.0,1818.9,0.77822516]
[1743819937951,2.0919,1819.0,1818.9,0.77822516]
[1743819938251,2.86184,1819.0,1818.9,0.77822516]
[1743819938646,2.86184,1819.0,1818.9,0.00824516]
[1743819939649,6.06964,1819.0,1818.9,0.00824516]
[1743819945962,6.7108,1819.0,1818.9,0.77822516]
[1743819948660,7.48074,1819.0,1818.9,0.77822516]
[1743819948859,8.91224,1819.0,1818.9,0.00824516]
[1743819953356,5.70444,1819.0,1818.9,0.00824516]
[1743819953553,8.91224,1819.0,1818.9,0.00824516]
[1743819958063,5.70444,1819.0,1818.9,0.00824516]
[1743819958267,8.91224,1819.0,1818.9,0.00824516]
[1743819960281,0.77006,1818.8,1818.6,4.74561]
[1743819961481,0.77006,1818.8,1818.7,2.2411]
[1743819964670,3.97777,1819.0,1818.8,0.77001]
[1743819964876,3.97777,1819.0,1818.9,1.5121]
[1743819965181,7.48077,1819.0,1818.9,2.2162]
[1743819969381,6.7108,1819.0,1818.9,2.98618]
[1743819970185,7.48074,1819.0,1818.9,2.98618]
[1743819970379,6.7108,1819.0,1818.9,2.98618]
[1743819971287,3.503,1819.0,1818.9,2.98618]
[1743819971882,7.47974,1819.1,1818.9,2.98618]
[1743819972181,7.47974,1819.1,1819.0,2.1168]
[1743819972988,0.76994,1819.0,1818.9,0.7041]
[1743819973189,2.28994,1819.0,1818.9,0.7041]
[1743819973588,2.28994,1819.0,1818.9,2.1203]
[1743819974390,0.76994,1819.0,1818.9,2.1203]
[1743819980193,8.1584,1819.1,1818.7,1.49214]
[1743819980493,0.77002,1818.9,1818.8,1.4455]
[1743819985495,0.77003,1818.8,1818.7,1.4548]
[1743819985895,4.27203,1818.8,1818.7,0.7327]
[1743819986293,4.27203,1818.8,1818.7,2.2172]
[1743819990294,0.77007,1818.7,1818.6,1.4845]
[1743819990600,2.17887,1818.7,1818.6,2.2214]
[1743819991098,0.77007,1818.7,1818.6,2.2214]
[1743819996501,0.77011,1818.6,1818.5,3.91294516]
[1743819996692,0.77011,1818.6,1818.5,0.00824516]
[1743819997501,2.21401,1818.6,1818.5,0.00824516]
[1743819998797,0.77028,1818.2,1818.1,3.2078]
[1743819999005,0.77033,1818.1,1817.9,2.99959]
[1743819999201,0.77033,1818.1,1818.0,1.4863]
[1743820000898,2.20533,1818.1,1818.0,1.4863]
[1743820001294,4.95964516,1818.2,1818.0,1.4863]
[1743820001295,5.72995516,1818.2,1818.0,1.4863]
[1743820001502,7.16495516,1818.2,1818.1,0.7057]
[1743820003202,6.47045516,1818.2,1818.1,0.7057]
[1743820009418,4.28155516,1818.2,1818.1,0.7057]
[1743820009821,4.28155516,1818.2,1818.1,2.2159]
[1743820011618,0.77855516,1818.2,1818.1,2.2159]
[1743820011822,3.51124516,1818.2,1818.1,2.2159]
[1743820012225,3.51124516,1818.2,1818.1,2.98622]
[1743820013931,4.28152516,1818.2,1818.1,2.2159]
[1743820015226,3.51124516,1818.2,1818.1,2.98622]
[1743820017130,0.00824516,1818.2,1818.1,2.98622]
[1743820017432,0.00824516,1818.2,1818.1,8.69402]
[1743820020935,3.2078,1818.7,1818.2,1.92568]
[1743820021233,3.2078,1818.7,1818.6,0.77011]
[1743820021434,5.74891,1818.9,1818.7,0.77005]
[1743820021626,5.74891,1818.9,1818.8,1.4934]
[1743820021828,0.7225,1819.1,1818.9,0.76998]
[1743820022027,1.4924,1819.1,1819.0,1.5003]
[1743820022223,4.9954,1819.1,1819.0,1.5003]
[1743820024230,4.2255,1819.1,1819.0,1.5003]
[1743820024936,5.6734,1819.1,1819.0,1.5003]
[1743820025834,6.4433,1819.1,1819.0,1.5003]
[1743820027240,0.76995,1819.0,1818.8,2.27165516]
[1743820027445,3.06005,1819.0,1818.8,2.27165516]
[1743820027937,1.5365,1818.9,1818.8,2.27165516]
[1743820028536,1.5365,1818.9,1818.8,1.50164516]
[1743820028735,2.30648,1818.9,1818.8,0.00824516]
[1743820028930,5.51428,1818.9,1818.8,0.00824516]
[1743820029539,8.01428,1818.9,1818.8,0.00824516]
[1743820031145,0.77016,1818.5,1818.3,2.19692]
[1743820031340,4.27214,1818.6,1818.3,2.19692]
[1743820031544,2.2636,1818.5,1818.3,2.19692]
[1743820031841,3.502,1818.6,1818.5,0.77015]
[1743820032535,3.502,1818.6,1818.5,3.68185]
[1743820039639,1.4504,1818.7,1818.6,0.77011]
[1743820039843,4.259,1818.8,1818.6,1.52]
[1743820040047,3.2078,1818.9,1818.8,0.77003]
[1743820040248,6.7098,1818.9,1818.8,0.77003]
[1743820040942,8.2428,1818.9,1818.8,0.77003]
[1743820043453,5.035,1818.9,1818.8,0.77003]
[1743820048058,5.80498,1818.9,1818.8,0.77003]
[1743820048457,5.035,1818.9,1818.8,0.77003]
[1743820049658,5.80498,1818.9,1818.6,1.4882]
[1743820049957,1.3909,1818.8,1818.7,0.77007]
[1743820050960,2.1477,1818.8,1818.7,0.77007]
[1743820052258,5.3555,1818.8,1818.5,3.2078]
[1743820052464,2.2655,1818.7,1818.5,3.2078]
[1743820052763,5.77871,1818.6,1818.5,3.2078]
[1743820054965,0.77015,1818.5,1818.4,0.00824516]
[1743820055160,3.04805,1818.5,1818.4,0.00824516]
[1743820056164,2.2779,1818.5,1818.4,0.77844516]
[1743820056356,2.2779,1818.5,1818.4,2.30104516]
[1743820058765,3.04805,1818.5,1818.4,2.30104516]
[1743820058967,3.04805,1818.5,1818.4,1.53084516]
[1743820059362,3.04805,1818.5,1818.4,2.30104516]
[1743820059559,0.77015,1818.5,1818.4,1.53084516]
[1743820060669,0.77015,1818.5,1818.4,2.30104516]
[1743820060869,5.74854,1818.6,1818.4,2.30104516]
[1743820061066,5.74854,1818.6,1818.5,1.529]
[1743820068477,0.77015,1818.5,1818.4,0.00824516]
[1743820068673,5.42235,1818.5,1818.4,0.00824516]
[1743820068879,7.92235,1818.5,1818.4,0.00824516]
[1743820069082,0.77036,1818.1,1817.9,2.97588]
[1743820069475,1.4444,1818.0,1817.9,2.97591]
[1743820069669,2.21476,1818.0,1817.9,2.2055]
[1743820070274,1.4444,1818.0,1817.9,2.2055]
[1743820070475,1.4444,1818.0,1817.9,2.97591]
[1743820070974,1.47174516,1818.1,1818.0,0.77036]
[1743820071280,2.24206516,1818.1,1818.0,1.4468]
[1743820071577,3.72846516,1818.1,1818.0,1.4468]
[1743820073371,3.00246516,1818.1,1818.0,1.4468]
[1743820077182,3.00246516,1818.1,1818.0,2.21716]
[1743820077378,3.00246516,1818.1,1818.0,1.4468]
[1743820078682,0.77041,1817.9,1817.8,0.00824516]
[1743820078982,7.48021,1817.9,1817.8,0.00824516]
[1743820079383,8.23181,1817.9,1817.8,0.00824516]
[1743820079982,9.3875,1817.9,1817.3,0.7375]
[1743820080282,0.7706,1817.5,1817.4,1.4964]
[1743820080879,2.2099,1817.5,1817.4,1.4964]
[1743820082284,1.4393,1817.5,1817.4,1.4964]
[1743820082686,2.20988,1817.5,1817.4,1.4964]
[1743820083585,3.2078,1817.7,1817.5,0.77054]
[1743820083885,3.503,1817.8,1817.6,1.5311]
[1743820084090,3.503,1817.8,1817.7,0.77049]
[1743820084396,3.503,1817.8,1817.6,2.2402]
[1743820084397,4.27345,1817.8,1817.6,3.0107]
[1743820084686,4.27345,1817.8,1817.7,1.5311]
[1743820085689,5.71865,1817.8,1817.7,1.5311]
[1743820087490,0.77049,1817.7,1817.6,0.7091]
[1743820087790,2.21569,1817.7,1817.6,2.1731]
[1743820088383,2.96349,1817.7,1817.6,2.1731]
[1743820089693,2.193,1817.7,1817.6,2.94363]
[1743820090799,2.96349,1817.7,1817.6,2.1731]
[1743820091490,2.193,1817.7,1817.6,2.94363]
[1743820091690,3.503,1817.8,1817.7,0.77049]
[1743820091893,3.503,1817.8,1817.7,2.24429]
[1743820092492,4.27345,1817.8,1817.7,1.4738]
[1743820093399,2.36766167,1817.9,1817.7,1.4738]
[1743820093692,5.87066167,1817.9,1817.8,0.7303]
[1743820094095,5.87066167,1817.9,1817.8,2.1147]
[1743820098704,9.07846167,1817.9,1817.8,2.1147]
[1743820098902,9.81936167,1817.9,1817.8,1.3844]
[1743820100604,0.77049,1817.7,1817.6,0.7091]
[1743820101004,2.21468,1817.8,1817.6,0.7091]
[1743820101205,2.21468,1817.8,1817.6,2.1899]
[1743820101399,7.55073167,1817.9,1817.6,2.1899]
[1743820101400,2.21469,1817.7,1817.6,2.1899]
[1743820104113,0.77053,1817.6,1817.5,0.7431]
[1743820104311,2.26093,1817.6,1817.5,0.7431]
[1743820104511,2.26093,1817.6,1817.5,2.2096]
[1743820105313,2.26093,1817.6,1817.5,2.98018]
[1743820105610,2.26093,1817.6,1817.5,2.2096]
[1743820107819,0.77052,1817.7,1817.5,2.98015]
[1743820108117,4.27352,1817.7,1817.6,1.5337]
[1743820119923,3.503,1817.7,1817.4,3.965]
[1743820120135,0.77058,1817.5,1817.4,2.2779]
[1743820120627,2.27658,1817.5,1817.4,2.2779]
[1743820120926,0.77062,1817.4,1817.3,0.70044516]
[1743820121127,5.77962,1817.4,1817.3,0.70044516]
[1743820121327,8.98742,1817.4,1817.3,0.00824516]
[1743820130330,11.58642168,1817.4,1817.3,5.16e-06]
[1743820132239,0.77083,1816.9,1816.8,2.1634]
[1743820132535,7.48263,1816.9,1816.8,2.1634]
[1743820133130,8.96773,1816.9,1816.8,2.1634]
[1743820134636,8.96773,1816.9,1816.8,1.4077]
[1743820135930,8.96773,1816.9,1816.8,2.1109]
[1743820138437,3.97863,1816.9,1816.8,2.1109]
[1743820138632,7.48263,1816.9,1816.8,2.1109]
[1743820145045,6.7118,1816.9,1816.4,0.77101]
[1743820145244,0.77094,1816.7,1816.5,0.771]
[1743820145439,0.77094,1816.7,1816.6,1.5282]
[1743820146139,0.771,1816.5,1816.4,1.5217]
[1743820147440,2.3015,1816.5,1816.4,1.5217]
[1743820148143,3.0059,1816.5,1816.4,0.7627]
[1743820148442,1.92762,1816.4,1815.8,0.77129]
[1743820148643,3.97893,1816.2,1816.1,1.4255]
[1743820149137,4.5954,1816.2,1815.8,0.7324]
[1743820149342,0.77125,1816.0,1815.9,1.5151]
[1743820149538,4.27825,1816.0,1815.9,1.5151]
[1743820150138,0.77134,1815.7,1815.6,3.2078]
[1743820150453,4.33235,1815.7,1815.4,0.77147]
[1743820150751,0.77138,1815.6,1815.5,2.995]
[1743820150943,3.97918,1815.6,1815.5,2.995]
[1743820151248,5.36678,1815.6,1815.5,2.995]
[1743820152150,4.5954,1815.6,1815.1,3.2078]
[1743820152348,3.97929,1815.4,1815.2,1.4526]
[1743820152551,3.577,1815.5,1815.4,0.77143]
[1743820152746,3.2078,1815.5,1814.8,3.2078]
[1743820152952,3.2078,1815.5,1815.0,1.50022]
[1743820153151,4.6117,1815.5,1815.0,1.50021]
[1743820153350,1.4039,1815.4,1815.0,0.7286]
[1743820153550,3.591,1815.3,1815.1,0.77159]
[1743820153842,3.9547,1815.5,1815.3,0.77148]
[1743820153843,3.2078,1815.5,1815.3,0.77148]
[1743820154044,3.97917,1815.7,1815.4,2.24917]
[1743820154251,3.592,1815.6,1815.4,2.24917]
[1743820154646,3.592,1815.6,1815.4,1.4777]
[1743820154647,4.36339,1815.6,1815.4,1.4777]
[1743820154855,4.36339,1815.6,1815.4,2.24916]
[1743820155055,3.592,1815.6,1815.4,2.24916]
[1743820155247,4.36338,1815.6,1815.4,2.24916]
[1743820156052,4.36338,1815.6,1815.4,1.4777]
[1743820156347,34.71924516,1815.8,1815.4,1.4777]
[1743820156348,0.77143,1815.5,1815.4,1.4777]
[1743820156549,0.7714,1815.6,1815.4,2.24915]
[1743820156742,0.7714,1815.6,1815.4,1.4777]
[1743820156954,0.7714,1815.6,1815.4,2.24916]
[1743820163262,4.36238,1815.7,1815.5,0.77143]
[1743820163448,3.591,1815.7,1815.4,1.4777]
[1743820163761,3.59024516,1815.8,1815.7,0.77134]
[1743820163954,4.36154516,1815.8,1815.7,0.77134]
[1743820164149,4.36154516,1815.8,1815.6,0.77135]
[1743820164355,4.36154516,1815.8,1815.7,0.7101]
[1743820164562,4.36154516,1815.8,1815.7,2.1875]
[1743820165564,4.36154516,1815.8,1815.7,2.95884]
[1743820166259,3.59024516,1815.8,1815.7,2.95884]
[1743820166563,0.00824516,1815.8,1815.7,2.95884]
[1743820171271,0.77954516,1815.8,1815.7,2.1875]
[1743820171569,2.23224516,1815.8,1815.7,2.1875]
[1743820172372,2.23224516,1815.8,1815.7,2.95884]
[1743820173070,2.23224516,1815.8,1815.7,2.1875]
[1743820173271,2.23224516,1815.8,1815.7,1.4774]
[1743820173670,2.23224516,1815.8,1815.7,2.24874]
[1743820173969,2.23224516,1815.8,1815.7,1.4774]
[1743820174169,1.46094516,1815.8,1815.7,2.24874]
[1743820174559,0.77954516,1815.8,1815.7,2.24874]
[1743820174771,0.77954516,1815.8,1815.7,1.4774]
[1743820175071,0.77954516,1815.8,1815.7,2.24874]
[1743820175272,2.26314516,1815.8,1815.7,2.24874]
[1743820176073,2.26314516,1815.8,1815.6,0.77136]
[1743820176262,1.4836,1815.7,1815.6,2.21746]
[1743820176969,2.25494,1815.7,1815.6,1.4461]
[1743820177180,7.5556,1815.7,1815.0,3.2078]
[1743820177373,0.77157,1815.2,1815.1,1.5328]
[1743820177667,3.579,1815.3,1814.8,3.2078]
[1743820177867,2.8324,1815.2,1814.9,1.5328]
[1743820178072,2.1045,1815.2,1815.1,0.7716]
[1743820178267,4.35053,1815.3,1815.2,0.77155]
[1743820178268,3.579,1815.3,1815.2,0.77155]
[1743820178474,4.3045,1815.5,1815.4,0.77147]
[1743820178870,4.3045,1815.5,1815.4,2.30427]
[1743820179074,5.07593,1815.5,1815.4,1.5328]
[1743820179272,4.3045,1815.5,1815.4,2.30427]
[1743820179770,5.07593,1815.5,1815.4,1.5328]
[1743820179974,4.3045,1815.5,1815.4,2.30427]
[1743820180174,5.07593,1815.5,1815.4,1.5328]
[1743820180380,6.52903,1815.5,1815.4,1.5328]
[1743820180674,3.591,1815.5,1815.4,2.30427]
[1743820181475,3.588,1815.6,1815.4,1.5328]
[1743820181663,3.588,1815.6,1815.5,0.77142]
[1743820181863,4.35938,1815.6,1815.4,2.30424]
[1743820182278,5.81248,1815.6,1815.4,2.30424]
[1743820183884,5.81248,1815.6,1815.5,1.46]
[1743820185078,5.0411,1815.6,1815.5,2.23143]
[1743820185280,5.81248,1815.6,1815.5,1.46]
[1743820185579,5.0411,1815.6,1815.5,1.46]
[1743820185879,5.81248,1815.6,1815.5,1.46]
[1743820186079,5.0411,1815.6,1815.5,1.46]
[1743820186581,5.0411,1815.6,1815.5,2.23143]
[1743820187277,5.81248,1815.6,1815.5,1.46]
[1743820187579,5.0411,1815.6,1815.5,1.46]
[1743820187980,5.81248,1815.6,1815.5,1.46]
[1743820188482,5.0411,1815.6,1815.3,2.25158]
[1743820188674,2.27643,1815.5,1815.3,3.70178]
[1743820188873,1.505,1815.4,1815.3,3.70178]
[1743820189081,1.505,1815.4,1815.3,2.1818]
[1743820189280,2.27647,1815.4,1815.2,0.77153]
[1743820189681,2.9692,1815.3,1815.2,0.77153]
[1743820189982,2.9692,1815.3,1815.2,2.22173]
[1743820190781,2.2657,1815.3,1815.2,2.22173]
[1743820192285,1.47495,1815.5,1815.3,0.77148]
[1743820192475,2.87945,1815.5,1815.4,0.77147]
[1743820192679,2.87945,1815.5,1815.3,2.15719]
[1743820192877,1.4045,1815.4,1815.3,2.15719]
[1743820197187,2.17597,1815.4,1815.3,1.3857]
[1743820197489,2.17597,1815.4,1815.2,0.77152]
[1743820197685,1.4041,1815.3,1815.2,2.25262]
[1743820200379,0.77957516,1815.8,1815.6,0.77136]
[1743820200580,3.572,1815.7,1815.6,0.77136]
[1743820201289,4.34334,1815.7,1815.6,0.77136]
[1743820201489,3.572,1815.7,1815.6,0.77136]
[1743820202188,3.572,1815.7,1815.5,0.7329]
[1743820202392,3.572,1815.7,1815.6,0.77138]
[1743820202690,4.34337,1815.7,1815.5,1.50429]
[1743820202987,4.9887,1815.7,1815.6,0.77138]
[1743820203482,4.9887,1815.7,1815.5,0.7329]
[1743820203678,2.91999,1815.6,1815.4,0.77145]
[1743820204282,2.1486,1815.6,1815.3,3.2078]
[1743820204781,2.1486,1815.6,1815.5,0.77143]
[1743820204982,2.91999,1815.6,1815.4,0.77144]
[1743820206493,1.4117,1815.5,1815.4,0.77144]
[1743820208697,3.572,1815.7,1815.3,3.2078]
[1743820208900,5.0245,1815.7,1815.6,0.77138]
[1743820209701,5.79584,1815.7,1815.6,0.77138]
[1743820209899,5.79584,1815.7,1815.5,0.7714]
[1743820210098,1.5229,1815.6,1815.5,0.7714]
[1743820210295,3.572,1815.7,1815.6,0.77138]
[1743820210495,3.58724516,1815.8,1815.7,0.77134]
[1743820211304,5.11014516,1815.8,1815.7,0.77134]
[1743820213208,1.53114516,1815.8,1815.7,0.77134]
[1743820214297,1.53114516,1815.8,1815.7,2.20484]
[1743820214496,0.00824516,1815.8,1815.7,2.20484]
[1743820214702,37.10222447,1816.5,1816.0,0.77121]
[1743820214703,1.5045,1816.1,1816.0,0.77121]
[1743820214908,5.85268,1816.1,1815.9,0.77124]
[1743820215108,5.85268,1816.1,1816.0,2.1334]
[1743820215309,0.77122,1816.0,1815.8,0.77127]
[1743820215510,3.73212,1816.0,1815.8,2.90467]
[1743820215709,3.73213,1816.0,1815.8,2.90467]
[1743820216006,0.77126,1815.9,1815.7,3.98736516]
[1743820216311,5.81549,1815.9,1815.7,0.77958516]
[1743820216709,1.4672,1815.8,1815.7,0.77958516]
[1743820218005,1.4672,1815.8,1815.7,2.18028516]
[1743820218502,2.2385,1815.8,1815.7,2.18028516]
[1743820218706,2.2385,1815.8,1815.7,1.40894516]
[1743820218909,1.4672,1815.8,1815.7,2.18028516]
[1743820219111,4.34829,1815.9,1815.8,0.7713]
[1743820219312,4.34829,1815.9,1815.8,1.4185]
[1743820219700,4.34829,1815.9,1815.8,2.1898]
[1743820219905,5.87799,1815.9,1815.8,1.4185]
[1743820220920,0.7713,1815.8,1815.7,0.00824516]
[1743820221106,2.301,1815.8,1815.7,0.00824516]
[1743820221503,1.5297,1815.8,1815.7,0.77958516]
[1743820222212,1.5297,1815.8,1815.7,0.00824516]
[1743820222213,2.301,1815.8,1815.7,0.00824516]
[1743820223309,2.301,1815.8,1815.7,0.77958516]
[1743820223505,1.5297,1815.8,1815.7,0.77958516]
[1743820223722,1.5297,1815.8,1815.7,2.17548516]
[1743820224513,4.34829,1815.9,1815.8,0.7713]
[1743820224514,3.569,1815.9,1815.8,0.7713]
[1743820224713,3.569,1815.9,1815.8,2.1672]
[1743820225814,4.33926,1815.9,1815.8,2.1672]
[1743820226204,4.33926,1815.9,1815.8,1.3959]
[1743820226407,5.86836,1815.9,1815.8,1.3959]
[1743820226808,5.86636,1815.9,1815.8,1.3959]
[1743820227016,0.7713,1815.8,1815.7,0.00824516]
[1743820227216,2.3004,1815.8,1815.7,0.00824516]
[1743820227410,3.0146,1815.8,1815.7,0.00824516]
[1743820230119,5.5146,1815.8,1815.7,0.00824516]
[1743820230419,0.77149,1815.4,1815.2,2.26155]
[1743820230617,3.568,1815.3,1815.2,2.26155]
[1743820234215,3.568,1815.3,1815.2,0.77155]
[1743820235024,3.568,1815.3,1815.2,2.23345]
[1743820237826,3.97927,1815.5,1815.2,1.4619]
[1743820238025,3.2078,1815.5,1815.4,0.77147]
[1743820238224,6.7758,1815.7,1815.6,0.77138]
[1743820238828,6.7758,1815.7,1815.4,2.1089]
[1743820238829,7.54714,1815.7,1815.5,0.77139]
[1743820239028,7.54714,1815.7,1815.6,0.7177]
[1743820239326,7.54914,1815.7,1815.6,0.7177]
[1743820239527,7.54914,1815.7,1815.6,2.1273]
[1743820239528,0.77134,1815.7,1815.6,2.1273]
[1743820239826,4.34034,1815.7,1815.6,2.1273]
[1743820240026,3.569,1815.7,1815.6,2.89868]
[1743820242128,0.77131,1815.8,1815.6,2.89868]
[1743820242319,3.566,1815.8,1815.7,2.22544]
[1743820242625,3.566,1815.8,1815.7,2.99044]
[1743820245725,0.77128,1815.9,1815.7,2.99044]
[1743820245928,0.77128,1815.9,1815.8,1.4047]
[1743820246125,5.76768,1815.9,1815.8,1.4047]
[1743820247330,5.76768,1815.9,1815.8,2.176]
[1743820247626,4.9964,1815.9,1815.8,2.176]
[1743820248026,3.563,1815.9,1815.8,2.176]
[1743820249229,6.22364,1816.0,1815.9,0.77126]
[1743820249427,9.78264,1816.0,1815.9,2.0904]
[1743820249933,9.78164,1816.0,1815.9,2.0904]
[1743820250532,9.78164,1816.0,1815.9,1.3896]
[1743820252936,9.0104,1816.0,1815.7,0.77131]
[1743820253236,2.2057,1815.9,1815.7,0.77131]
[1743820253831,1.4344,1815.9,1815.6,2.25587]
[1743820254031,1.4344,1815.8,1815.6,1.4845]
[1743820254335,0.77134,1815.7,1815.6,2.25587]
[1743820254528,4.32734,1815.7,1815.6,2.25587]
[1743820254833,3.556,1815.7,1815.6,2.25587]
[1743820259038,4.69204,1816.0,1815.8,0.7713]
[1743820259337,4.69204,1816.0,1815.9,2.1317]